[Event "Polofinale MCR junioru 2023"]
[Site "Czech Republic"]
[Date "2023.11.17"]
[Round "8.35"]
[White "Kocman, Patrik"]
[Black "Meca, Viktor"]
[Result "1/2-1/2"]
[TimeControl "90 min per 40 moves + 15 min + 30 sec / move from move 1"]
[WhiteFideId "23735732"]
[BlackFideId "23739800"]
[WhiteElo "1478"]
[BlackElo "1642"]

1. e4 {[%clk 01:30:57]} {[%emt 00:00:03]} c5 {[%clk 01:30:52]} {[%emt
00:00:09]} 2. Nf3 {[%clk 01:31:20]} {[%emt 00:00:06]} d6 {[%clk 01:31:15]}
{[%emt 00:00:07]} 3. d4 {[%clk 01:31:43]} {[%emt 00:00:07]} cxd4 {[%clk
01:31:39]} {[%emt 00:00:06]} 4. Nxd4 {[%clk 01:32:07]} {[%emt 00:00:06]} Nf6
{[%clk 01:31:59]} {[%emt 00:00:10]} 5. Nc3 {[%clk 01:31:50]} {[%emt 00:00:47]}
g6 {[%clk 01:32:21]} {[%emt 00:00:08]} 6. Be3 {[%clk 01:31:42]} {[%emt
00:00:38]} Bg7 {[%clk 01:32:31]} {[%emt 00:00:20]} 7. Be2 {[%clk 01:31:54]}
{[%emt 00:00:18]} O-O {[%clk 01:31:17]} {[%emt 00:01:44]} 8. O-O {[%clk
01:31:21]} {[%emt 00:01:02]} d5 {[%clk 01:25:41]} {[%emt 00:06:07]} 9. exd5
{[%clk 01:28:10]} {[%emt 00:03:40]} Nxd5 {[%clk 01:25:43]} {[%emt 00:00:27]} 10.
Nxd5 {[%clk 01:27:34]} {[%emt 00:01:07]} Qxd5 {[%clk 01:26:00]} {[%emt
00:00:13]} 11. Bf3 {[%clk 01:25:51]} {[%emt 00:02:13]} Qd7 {[%clk 01:24:22]}
{[%emt 00:02:08]} 12. c3 {[%clk 01:23:46]} {[%emt 00:02:36]} e5 {[%clk
01:19:14]} {[%emt 00:05:37]} 13. Nb3 {[%clk 01:21:51]} {[%emt 00:02:24]} Qc7
{[%clk 01:16:01]} {[%emt 00:03:43]} 14. Qe2 {[%clk 01:14:58]} {[%emt 00:07:22]}
Re8 {[%clk 01:07:53]} {[%emt 00:08:39]} 15. Qb5 {[%clk 01:08:41]} {[%emt
00:06:45]} Nc6 {[%clk 00:53:38]} {[%emt 00:14:46]} 16. Nc5 {[%clk 00:58:15]}
{[%emt 00:10:56]} a6 {[%clk 00:46:13]} {[%emt 00:07:55]} 17. Qa4 {[%clk
00:51:45]} {[%emt 00:06:58]} Bf8 {[%clk 00:35:36]} {[%emt 00:11:08]} 18. Ne4
{[%clk 00:41:26]} {[%emt 00:10:49]} Be7 {[%clk 00:29:47]} {[%emt 00:06:19]} 19.
Nc5 {[%clk 00:28:33]} {[%emt 00:13:23]} Bxc5 {[%clk 00:24:16]} {[%emt
00:06:00]} 20. Bxc5 {[%clk 00:29:16]} {[%emt 00:00:18]} Bd7 {[%clk 00:24:19]}
{[%emt 00:00:57]} 21. Qc2 {[%clk 00:24:51]} {[%emt 00:04:55]} Bf5 {[%clk
00:17:21]} {[%emt 00:07:28]} 22. Be4 {[%clk 00:24:24]} {[%emt 00:00:56]} Bxe4
{[%clk 00:16:26]} {[%emt 00:01:25]} 23. Qxe4 {[%clk 00:24:45]} {[%emt
00:00:10]} Rad8 {[%clk 00:14:51]} {[%emt 00:02:05]} 24. Rad1 {[%clk 00:24:30]}
{[%emt 00:00:44]} b6 {[%clk 00:10:01]} {[%emt 00:05:21]} 25. Be3 {[%clk
00:23:28]} {[%emt 00:01:31]} b5 {[%clk 00:09:14]} {[%emt 00:01:19]} 26. Bg5
{[%clk 00:22:14]} {[%emt 00:01:42]} Rd7 {[%clk 00:07:42]} {[%emt 00:02:03]} 27.
Bf6 {[%clk 00:16:52]} {[%emt 00:05:50]} Re6 {[%clk 00:06:17]} {[%emt 00:01:57]}
28. Qh4 {[%clk 00:16:10]} {[%emt 00:01:11]} Ne7 {[%clk 00:04:37]} {[%emt
00:02:12]} 29. Bg5 {[%clk 00:12:11]} {[%emt 00:04:27]} Nf5 {[%clk 00:03:33]}
{[%emt 00:01:35]} 30. Qe4 {[%clk 00:11:17]} {[%emt 00:01:22]} f6 {[%clk
00:02:57]} {[%emt 00:01:08]} 31. Bc1 {[%clk 00:11:34]} {[%emt 00:00:13]} Red6
{[%clk 00:02:12]} {[%emt 00:01:15]} 32. Qe2 {[%clk 00:11:01]} {[%emt 00:01:02]}
Qd8 {[%clk 00:02:07]} {[%emt 00:00:36]} 33. Rxd6 {[%clk 00:11:11]} {[%emt
00:00:20]} Rxd6 {[%clk 00:02:28]} {[%emt 00:00:08]} 34. c4 {[%clk 00:09:43]}
{[%emt 00:01:58]} Nd4 {[%clk 00:02:06]} {[%emt 00:00:52]} 35. Qd3 {[%clk
00:08:52]} {[%emt 00:01:20]} f5 {[%clk 00:01:21]} {[%emt 00:01:16]} 36. f3
{[%clk 00:07:00]} {[%emt 00:02:22]} Kg7 {[%clk 00:00:42]} {[%emt 00:01:08]} 37.
Re1 {[%clk 00:06:07]} {[%emt 00:01:23]} bxc4 {[%clk 00:00:43]} {[%emt
00:00:30]} 38. Qxc4 {[%clk 00:06:10]} {[%emt 00:00:27]} Rc6 {[%clk 00:00:58]}
{[%emt 00:00:14]} 39. Qd3 {[%clk 00:05:19]} {[%emt 00:01:16]} Qd5 {[%clk
00:00:51]} {[%emt 00:00:42]} 40. Qe3 {[%clk 00:04:10]} {[%emt 00:01:31]} Rc5
{[%clk 00:00:35]} {[%emt 00:00:54]} 41. Rd1 {[%clk 00:03:56]} {[%emt 00:00:44]}
Qxa2 {[%clk 00:00:37]} {[%emt 00:00:28]} 42. Rxd4 {[%clk 00:03:01]} {[%emt
00:01:25]} Rxc1+ {[%clk 00:00:58]} {[%emt 00:00:09]} 43. Qxc1 {[%clk 00:03:18]}
{[%emt 00:00:13]} exd4 {[%clk 00:01:22]} {[%emt 00:00:06]} 44. Qc7+ {[%clk
00:03:37]} {[%emt 00:00:11]} Qf7 {[%clk 00:01:00]} {[%emt 00:00:52]} 45. Qe5+
{[%clk 00:03:51]} {[%emt 00:00:15]} Qf6 {[%clk 00:01:14]} {[%emt 00:00:17]} 46.
Qc7+ {[%clk 00:03:52]} {[%emt 00:00:29]} Kh6 {[%clk 00:01:26]} {[%emt
00:00:18]} 47. Qf4+ {[%clk 00:03:31]} {[%emt 00:00:48]} g5 {[%clk 00:01:44]}
{[%emt 00:00:14]} 48. Qd2 {[%clk 00:03:45]} {[%emt 00:00:15]} Qb6 {[%clk
00:01:23]} {[%emt 00:00:51]} 49. Kf1 {[%clk 00:03:24]} {[%emt 00:00:51]} Qb5+
{[%clk 00:00:59]} {[%emt 00:00:54]} 50. Kf2 {[%clk 00:03:44]} {[%emt 00:00:10]}
Qc5 {[%clk 00:01:12]} {[%emt 00:00:17]} 51. Qd3 {[%clk 00:01:00]} {[%emt
00:03:10]} Qb6 {[%clk 00:01:27]} {[%emt 00:00:19]} 52. b3 {[%clk 00:01:08]}
{[%emt 00:00:23]} f4 {[%clk 00:01:03]} {[%emt 00:00:53]} 53. Ke2 {[%clk
00:00:44]} {[%emt 00:00:54]} Qe6+ {[%clk 00:00:47]} {[%emt 00:00:46]} 54. Kf1
{[%clk 00:00:39]} {[%emt 00:00:35]} Qe3 {[%clk 00:00:41]} {[%emt 00:00:37]} 55.
Qxa6+ {[%clk 00:00:53]} {[%emt 00:00:16]} Kh5 {[%clk 00:01:00]} {[%emt
00:00:10]} 56. Qb7 {[%clk 00:00:49]} {[%emt 00:00:34]} Qd3+ {[%clk 00:00:54]}
{[%emt 00:00:37]} 57. Kf2 {[%clk 00:00:54]} {[%emt 00:00:24]} Qe3+ {[%clk
00:00:46]} {[%emt 00:00:38]} 58. Kf1 {[%emt 00:00:35]} 1/2-1/2

[Event "Polofinale MCR junioru 2023"]
[Site "Czech Republic"]
[Date "2023.11.17"]
[Round "8.36"]
[White "Pistej, Tomas"]
[Black "Vasinek, Martin"]
[Result "1/2-1/2"]
[TimeControl "90 min per 40 moves + 15 min + 30 sec / move from move 1"]
[WhiteFideId "23750740"]
[BlackFideId "392200"]
[WhiteElo "1502"]
[BlackElo "1987"]

1. e4 {[%clk 01:30:56]} {[%emt 00:00:03]} c5 {[%clk 01:30:56]} {[%emt
00:00:04]} 2. Nc3 {[%clk 01:31:20]} {[%emt 00:00:06]} Nc6 {[%clk 01:31:20]}
{[%emt 00:00:06]} 3. Bb5 {[%clk 01:31:39]} {[%emt 00:00:11]} g6 {[%clk
01:31:11]} {[%emt 00:00:39]} 4. Bxc6 {[%clk 01:32:01]} {[%emt 00:00:09]} bxc6
{[%clk 01:31:23]} {[%emt 00:00:18]} 5. d3 {[%clk 01:32:18]} {[%emt 00:00:12]}
d5 {[%clk 01:30:32]} {[%emt 00:01:20]} 6. f4 {[%clk 01:32:04]} {[%emt
00:00:44]} e6 {[%clk 01:29:58]} {[%emt 00:01:04]} 7. Nf3 {[%clk 01:32:11]}
{[%emt 00:00:23]} Bg7 {[%clk 01:30:06]} {[%emt 00:00:23]} 8. O-O {[%clk
01:32:07]} {[%emt 00:00:32]} Ne7 {[%clk 01:30:28]} {[%emt 00:00:10]} 9. Qe1
{[%clk 01:21:22]} {[%emt 00:11:14]} O-O {[%clk 01:28:50]} {[%emt 00:02:09]} 10.
Qh4 {[%clk 01:18:28]} {[%emt 00:03:23]} f5 {[%clk 01:25:41]} {[%emt 00:03:40]}
11. e5 {[%clk 01:17:58]} {[%emt 00:00:59]} Rb8 {[%clk 01:23:01]} {[%emt
00:03:11]} 12. b3 {[%clk 01:17:18]} {[%emt 00:01:10]} d4 {[%clk 00:41:56]}
{[%emt 00:41:36]} 13. Na4 {[%clk 01:14:51]} {[%emt 00:02:57]} Nd5 {[%clk
00:39:19]} {[%emt 00:03:07]} 14. Qxd8 {[%clk 00:57:43]} {[%emt 00:17:38]} Rxd8
{[%clk 00:39:40]} {[%emt 00:00:08]} 15. Nxc5 {[%clk 00:57:36]} {[%emt
00:00:37]} Bf8 {[%clk 00:37:40]} {[%emt 00:02:30]} 16. Na4 {[%clk 00:46:37]}
{[%emt 00:11:30]} Nb4 {[%clk 00:37:00]} {[%emt 00:01:11]} 17. Rf2 {[%clk
00:45:10]} {[%emt 00:01:55]} Na6 {[%clk 00:35:50]} {[%emt 00:01:40]} 18. Nb2
{[%clk 00:40:03]} {[%emt 00:05:38]} Bb7 {[%clk 00:33:55]} {[%emt 00:02:25]} 19.
Nc4 {[%clk 00:34:14]} {[%emt 00:06:18]} c5 {[%clk 00:33:52]} {[%emt 00:00:33]}
20. Ba3 {[%clk 00:30:58]} {[%emt 00:03:45]} Bd5 {[%clk 00:34:02]} {[%emt
00:00:21]} 1/2-1/2

[Event "Polofinale MCR junioru 2023"]
[Site "Czech Republic"]
[Date "2023.11.17"]
[Round "8.37"]
[White "Popov, Roman"]
[Black "Fizerova, Lucie"]
[Result "1-0"]
[TimeControl "90 min per 40 moves + 15 min + 30 sec / move from move 1"]
[WhiteFideId "23732580"]
[BlackFideId "385115"]
[WhiteElo "1889"]
[BlackElo "1886"]

1. c4 {[%clk 01:30:52]} {[%emt 00:00:08]} c5 {[%clk 01:30:28]} {[%emt
00:00:32]} 2. Nc3 {[%clk 01:31:01]} {[%emt 00:00:20]} Nc6 {[%clk 01:30:30]}
{[%emt 00:00:28]} 3. Nf3 {[%clk 01:31:21]} {[%emt 00:00:10]} g6 {[%clk
01:29:50]} {[%emt 00:01:09]} 4. e3 {[%clk 01:31:12]} {[%emt 00:00:39]} Bg7
{[%clk 01:26:09]} {[%emt 00:04:12]} 5. d4 {[%clk 01:31:08]} {[%emt 00:00:33]}
cxd4 {[%clk 01:23:47]} {[%emt 00:02:52]} 6. exd4 {[%clk 01:31:27]} {[%emt
00:00:11]} d6 {[%clk 01:23:33]} {[%emt 00:00:44]} 7. d5 {[%clk 01:31:15]}
{[%emt 00:00:42]} Ne5 {[%clk 01:22:54]} {[%emt 00:01:09]} 8. Nxe5 {[%clk
01:31:18]} {[%emt 00:00:26]} Bxe5 {[%clk 01:22:23]} {[%emt 00:01:02]} 9. Be2
{[%clk 01:28:59]} {[%emt 00:02:49]} Bg7 {[%clk 01:20:49]} {[%emt 00:02:04]} 10.
O-O {[%clk 01:26:26]} {[%emt 00:03:03]} Nf6 {[%clk 01:20:42]} {[%emt 00:00:37]}
11. Be3 {[%clk 01:25:27]} {[%emt 00:01:29]} O-O {[%clk 01:18:59]} {[%emt
00:02:12]} 12. Rc1 {[%clk 01:14:46]} {[%emt 00:11:11]} b6 {[%clk 01:16:10]}
{[%emt 00:03:19]} 13. b4 {[%clk 01:12:11]} {[%emt 00:03:05]} Bb7 {[%clk
01:14:22]} {[%emt 00:02:18]} 14. Re1 {[%clk 01:04:45]} {[%emt 00:07:56]} Rc8
{[%clk 01:06:51]} {[%emt 00:08:01]} 15. Qb3 {[%clk 00:50:30]} {[%emt 00:14:46]}
Ba6 {[%clk 01:01:44]} {[%emt 00:05:36]} 16. Bd4 {[%clk 00:37:41]} {[%emt
00:13:18]} Bh6 {[%clk 00:51:56]} {[%emt 00:10:18]} 17. Rc2 {[%clk 00:34:32]}
{[%emt 00:03:40]} Re8 {[%clk 00:48:58]} {[%emt 00:03:28]} 18. Qa4 {[%clk
00:27:09]} {[%emt 00:07:53]} Bb7 {[%clk 00:38:45]} {[%emt 00:10:43]} 19. Qxa7
{[%clk 00:25:39]} {[%emt 00:02:00]} Bxd5 {[%clk 00:30:20]} {[%emt 00:08:56]} 20.
Bxb6 {[%clk 00:12:36]} {[%emt 00:13:32]} Ra8 {[%clk 00:30:05]} {[%emt
00:00:45]} 21. Bxd8 {[%clk 00:12:00]} {[%emt 00:01:05]} Rxa7 {[%clk 00:30:23]}
{[%emt 00:00:13]} 22. Bb6 {[%clk 00:07:37]} {[%emt 00:04:53]} Rb7 {[%clk
00:28:14]} {[%emt 00:02:39]} 23. Bd4 {[%clk 00:05:34]} {[%emt 00:02:33]} Be6
{[%clk 00:26:10]} {[%emt 00:02:33]} 24. Bf3 {[%clk 00:01:48]} {[%emt 00:04:16]}
Rbb8 {[%clk 00:21:04]} {[%emt 00:05:37]} 25. b5 {[%clk 00:00:55]} {[%emt
00:01:23]} Bf5 {[%clk 00:14:46]} {[%emt 00:06:48]} 26. Rce2 {[%clk 00:00:33]}
{[%emt 00:00:51]} e5 {[%clk 00:13:51]} {[%emt 00:01:26]} 27. Ba7 {[%clk
00:00:49]} {[%emt 00:00:15]} Rbc8 {[%clk 00:11:42]} {[%emt 00:02:38]} 28. Nd5
{[%clk 00:00:37]} {[%emt 00:00:41]} Nd7 {[%clk 00:10:06]} {[%emt 00:02:06]} 29.
b6 {[%clk 00:00:39]} {[%emt 00:00:28]} Kg7 {[%clk 00:07:07]} {[%emt 00:03:30]}
30. g4 {[%clk 00:00:35]} {[%emt 00:00:33]} Bd3 {[%clk 00:05:01]} {[%emt
00:02:36]} 31. Rb2 {[%clk 00:00:43]} {[%emt 00:00:22]} Rxc4 {[%clk 00:03:00]}
{[%emt 00:02:31]} 32. b7 {[%clk 00:00:38]} {[%emt 00:00:35]} Nb8 {[%clk
00:03:25]} {[%emt 00:00:04]} 33. Nb4 {[%clk 00:00:34]} {[%emt 00:00:35]} Rxb4
{[%clk 00:02:18]} {[%emt 00:01:38]} 34. Rxb4 {[%clk 00:01:02]} {[%emt
00:00:01]} Bd2 {[%clk 00:02:43]} {[%emt 00:00:05]} 35. Ra4 {[%clk 00:00:36]}
{[%emt 00:00:57]} Bxe1 {[%clk 00:00:46]} {[%emt 00:02:26]} 36. Bxb8 {[%clk
00:01:04]} {[%emt 00:00:02]} e4 {[%clk 00:01:09]} {[%emt 00:00:07]} 37. Bxd6
{[%clk 00:00:49]} {[%emt 00:00:45]} exf3 {[%clk 00:00:37]} {[%emt 00:01:02]} 38.
b8=Q {[%clk 00:00:52]} {[%emt 00:00:26]} Re2 {[%clk 00:00:41]} {[%emt
00:00:27]} 39. Be5+ {[%clk 00:00:43]} {[%emt 00:00:39]} Kh6 {[%clk 00:00:41]}
{[%emt 00:00:30]} 40. Qf8+ {[%clk 00:00:41]} {[%emt 00:00:31]} Kg5 {[%clk
00:00:48]} {[%emt 00:00:23]} 41. h4+ {[%clk 00:00:40]} {[%emt 00:00:31]} 1-0

[Event "Polofinale MCR junioru 2023"]
[Site "Czech Republic"]
[Date "2023.11.17"]
[Round "8.38"]
[White "Striz, Tadeas"]
[Black "Brychta, David"]
[Result "1/2-1/2"]
[TimeControl "90 min per 40 moves + 15 min + 30 sec / move from move 1"]
[WhiteFideId "23723530"]
[BlackFideId "23742798"]
[WhiteElo "1371"]
[BlackElo "1230"]

1. e4 {[%clk 01:30:57]} {[%emt 00:00:02]} c5 {[%clk 01:30:57]} {[%emt
00:00:04]} 2. Nf3 {[%clk 01:31:22]} {[%emt 00:00:05]} e6 {[%clk 01:31:23]}
{[%emt 00:00:04]} 3. c4 {[%clk 01:31:18]} {[%emt 00:00:34]} d6 {[%clk
01:31:27]} {[%emt 00:00:26]} 4. Nc3 {[%clk 01:31:31]} {[%emt 00:00:16]} Nf6
{[%clk 01:31:47]} {[%emt 00:00:10]} 5. d4 {[%clk 01:31:16]} {[%emt 00:00:45]}
cxd4 {[%clk 01:32:12]} {[%emt 00:00:06]} 6. Nxd4 {[%clk 01:31:37]} {[%emt
00:00:09]} a6 {[%clk 01:32:30]} {[%emt 00:00:13]} 7. Be3 {[%clk 01:31:34]}
{[%emt 00:00:32]} Be7 {[%clk 01:32:00]} {[%emt 00:01:00]} 8. Be2 {[%clk
01:31:18]} {[%emt 00:00:45]} O-O {[%clk 01:31:13]} {[%emt 00:01:18]} 9. O-O
{[%clk 01:31:34]} {[%emt 00:00:15]} Nc6 {[%clk 01:20:13]} {[%emt 00:11:30]} 10.
f3 {[%clk 01:31:08]} {[%emt 00:00:55]} Nxd4 {[%clk 01:10:30]} {[%emt 00:10:13]}
11. Qxd4 {[%clk 01:29:44]} {[%emt 00:01:54]} Nd7 {[%clk 01:06:05]} {[%emt
00:04:55]} 12. Rfd1 {[%clk 01:28:32]} {[%emt 00:01:42]} Qc7 {[%clk 01:05:50]}
{[%emt 00:00:45]} 13. Rac1 {[%clk 01:28:00]} {[%emt 00:01:01]} Qc5 {[%clk
00:59:46]} {[%emt 00:06:35]} 14. Qd3 {[%clk 01:07:02]} {[%emt 00:21:28]} Ne5
{[%clk 00:51:56]} {[%emt 00:08:20]} 15. Bxc5 {[%clk 01:06:36]} {[%emt
00:00:55]} Nxd3 {[%clk 00:52:20]} {[%emt 00:00:07]} 16. Rxd3 {[%clk 01:07:03]}
{[%emt 00:00:03]} dxc5 {[%clk 00:52:44]} {[%emt 00:00:06]} 17. Na4 {[%clk
00:51:54]} {[%emt 00:15:38]} Bf6 {[%clk 00:32:39]} {[%emt 00:20:37]} 18. Rc2
{[%clk 00:46:09]} {[%emt 00:06:15]} Bd4+ {[%clk 00:32:43]} {[%emt 00:00:26]} 19.
Kf1 {[%clk 00:46:35]} {[%emt 00:00:04]} e5 {[%clk 00:33:01]} {[%emt 00:00:12]}
20. Nb6 {[%clk 00:44:31]} {[%emt 00:02:33]} Rb8 {[%clk 00:31:51]} {[%emt
00:01:39]} 21. Nxc8 {[%clk 00:41:18]} {[%emt 00:03:44]} Rbxc8 {[%clk 00:31:12]}
{[%emt 00:01:09]} 22. Rb3 {[%clk 00:40:22]} {[%emt 00:01:26]} Rc7 {[%clk
00:27:20]} {[%emt 00:04:23]} 1/2-1/2